bitfinex/quotes_SOLUSD_20260105
["timestamp","ask_amount","ask_price","bid_price","bid_amount"]
[1767627951994,26.62494074,136.04,135.99,0.66155989]
[1767627952195,5.87394535,136.03,135.99,0.66155989]
[1767627952414,5.87394535,136.03,135.97,13.8898424]
[1767627952803,20.75099539,136.04,135.98,13.88945089]
[1767627953007,7.35140002,136.03,135.99,0.66155989]
[1767627953594,13.22464794,136.05,136.0,0.66155989]
[1767627953799,7.35070259,136.05,136.01,0.66155989]
[1767627955013,7.35070259,136.05,135.97,18.38582109]
[1767627955014,6.56268023,136.02,135.97,0.66155989]
[1767627955225,5.87394535,136.01,135.97,0.66155989]
[1767627955525,0.68463512,136.0,135.95,0.66155989]
[1767627955728,6.55858047,136.0,135.95,0.66155989]
[1767627956223,0.27039256,136.01,135.96,0.66155989]
[1767627956423,5.87394535,136.0,135.96,0.66155989]
[1767627957096,13.22703794,136.0,135.96,0.66155989]
[1767627957400,7.35309259,136.0,135.96,0.66155989]
[1767627958523,13.22703794,136.0,135.96,0.66155989]
[1767627958901,7.35309259,136.0,135.96,0.66155989]
[1767627959107,13.22703794,136.0,135.96,0.66155989]
[1767627960122,7.35309259,136.0,135.96,0.66155989]
[1767627960511,13.22703794,136.0,135.96,0.66155989]
[1767627960818,24.53660006,136.03,135.98,0.6914866]
[1767627961119,7.35155721,136.03,135.98,6.56543195]
[1767627961302,0.69870142,136.06,135.98,0.6914866]
[1767627961495,20.74915852,136.07,136.02,6.5646601]
[1767627961697,45.2654705,136.07,136.02,6.5646601]
[1767627962304,45.2654705,136.07,136.04,5.87394535]
[1767627962305,7.34915852,136.07,136.04,5.87394535]
[1767627962694,19.06936169,136.09,136.05,5.87394535]
[1767627962695,7.3486709,136.08,136.05,5.87394535]
[1767627962898,25.72021704,136.08,136.04,0.69071475]
[1767627963122,7.3486709,136.08,136.04,0.69071475]
[1767627963324,8.04699984,136.09,136.04,0.69071475]
[1767627963530,13.4,136.11,136.06,6.5646601]
[1767627963696,20.74721902,136.11,136.06,6.5646601]
[1767627964201,7.34721902,136.11,136.07,5.87394535]
[1767627964400,32.03295557,136.14,136.09,5.87394535]
[1767627964710,0.69440333,136.13,136.08,6.5646601]
[1767627965423,0.26889211,136.14,136.1,5.87394535]
[1767627965733,7.34484024,136.15,136.1,5.87394535]
[1767627965734,7.34484024,136.15,136.1,6.5646601]
[1767627966116,7.34484024,136.15,136.1,0.69071475]
[1767627966426,7.61373235,136.15,136.1,6.5646601]
[1767627966724,7.61373235,136.15,136.11,6.5646601]
[1767627966725,7.34484024,136.15,136.11,6.5646601]
[1767627967099,7.34484024,136.15,136.07,0.69071475]
[1767627967100,0.69019077,136.13,136.07,0.69071475]
[1767627967306,0.69019077,136.13,136.07,6.5646601]
[1767627967307,6.56413612,136.13,136.07,6.5646601]
[1767627967723,7.346459,136.12,136.08,6.5646601]
[1767627968321,7.346459,136.12,136.08,0.69071475]
[1767627968524,7.34610478,136.13,136.09,6.5646601]
[1767627969030,18.36429228,136.14,136.09,0.69071475]
[1767627969031,7.3455965,136.14,136.09,0.69071475]
[1767627969228,7.34503414,136.15,136.12,6.5646601]
[1767627969398,0.1,136.17,136.13,6.5346601]
[1767627969604,0.1,136.17,136.13,0.66071475]
[1767627969905,7.44376147,136.17,136.13,0.66071475]
[1767627970306,13.31770682,136.17,136.13,0.66071475]
[1767627970530,7.44376147,136.17,136.13,0.66071475]
[1767627970826,0.1,136.17,136.13,0.66071475]
[1767627971030,0.1,136.17,136.13,5.87394535]
[1767627971404,0.1,136.17,136.14,0.69071475]
[1767627971631,0.69870142,136.2,136.15,6.5646601]
[1767627971830,7.34233257,136.2,136.16,0.69071475]
[1767627972007,7.34177112,136.21,136.17,0.69071475]
[1767627972208,0.69569033,136.2,136.15,5.87394535]
[1767627972768,0.69569033,136.2,136.1,13.4]
[1767627972769,7.73936323,136.21,136.16,6.5646601]
[1767627972937,0.39759211,136.21,136.16,6.5646601]
[1767627973241,5.87394535,136.22,136.16,0.69071475]
[1767627973541,5.87394535,136.22,136.17,0.69071475]
[1767627973829,7.34062838,136.23,136.18,0.69071475]
[1767627974413,13.21457373,136.23,136.18,0.69071475]
[1767627975134,7.34062838,136.23,136.19,0.69071475]
[1767627975335,13.21405352,136.24,136.19,0.69071475]
[1767627975522,5.87394535,136.23,136.2,0.69071475]
[1767627976133,13.21405352,136.24,136.2,0.69071475]
[1767627976308,5.87394535,136.23,136.2,0.69071475]
[1767627976519,5.87394535,136.21,136.17,0.69071475]
[1767627976723,5.87394535,136.2,136.17,0.69071475]
[1767627976925,13.21583384,136.21,136.17,0.69071475]
[1767627978060,0.40349475,136.22,136.17,0.69071475]
[1767627978061,7.7447384,136.22,136.17,0.69071475]
[1767627978354,5.87394535,136.21,136.17,0.69071475]
[1767627979155,7.7447384,136.22,136.17,0.69071475]
[1767627979454,5.87394535,136.21,136.17,0.69071475]
[1767627980627,7.7447384,136.22,136.17,0.69071475]
[1767627980955,5.87394535,136.21,136.17,0.69071475]
[1767627981326,7.34200144,136.21,136.17,0.69071475]
[1767627981525,13.21594679,136.21,136.17,0.69071475]
[1767627981759,7.7445798,136.22,136.17,0.69071475]
[1767627981933,13.2150304,136.22,136.17,0.69071475]
[1767627982854,5.87394535,136.21,136.17,0.69071475]
[1767627983552,7.34108505,136.22,136.17,8.03446555]
[1767627983859,7.34108505,136.22,136.18,0.69071475]
[1767627984060,13.2150304,136.22,136.18,0.69071475]
[1767627984659,7.34108505,136.22,136.18,0.69071475]
[1767627984859,13.2150304,136.22,136.18,0.69071475]
[1767627985046,7.34108505,136.22,136.18,0.69071475]
[1767627985246,13.2150304,136.22,136.18,0.69071475]
[1767627985857,32.26338553,136.22,136.18,0.69071475]
[1767627986042,13.91072073,136.22,136.18,0.69071475]
[1767627986457,8.03677538,136.22,136.18,0.69071475]
[1767627986761,13.91072073,136.22,136.18,0.69071475]
[1767627986957,5.87394535,136.21,136.18,0.69071475]
[1767627987155,0.40057309,136.2,136.15,27.30943601]
[1767627987464,5.87394535,136.21,136.16,0.69071475]
[1767627987651,5.87394535,136.21,136.17,0.69071475]
[1767627988758,5.87394535,136.19,136.15,0.69071475]
[1767627988935,13.2168114,136.19,136.15,0.69071475]
[1767627989463,5.87394535,136.18,136.15,0.69071475]
[1767627989649,6.2774401,136.18,136.13,0.69071475]
[1767627989854,0.40349475,136.18,136.13,0.69071475]
[1767627990037,5.87394535,136.17,136.13,0.69071475]
[1767627990437,6.2774401,136.18,136.13,0.69071475]
[1767627990638,16.8884007,136.19,136.14,0.69071475]
[1767627991053,16.88804426,136.2,136.15,0.6540117]
[1767627991238,13.38,136.21,136.16,0.6540117]
[1767627991436,0.71360217,136.23,136.18,0.6540117]
[1767627991653,9.54553465,136.21,136.18,0.6540117]
[1767627991866,7.34125986,136.22,136.18,0.6540117]
[1767627991867,16.88679451,136.22,136.18,0.6540117]
[1767627992067,7.34125986,136.22,136.18,0.6540117]
[1767627992244,16.88679451,136.22,136.18,0.6540117]
[1767627992675,7.72410023,136.22,136.16,0.6540117]
[1767627992969,7.72410023,136.22,136.15,0.6540117]
[1767627992970,9.54553465,136.18,136.15,0.6540117]
[1767627993771,9.54553465,136.19,136.15,0.6540117]
[1767627993973,10.25913682,136.2,136.15,0.6540117]
[1767627994465,13.38,136.21,136.16,0.6540117]
[1767627994466,9.54553465,136.21,136.16,0.6540117]
[1767627994660,7.3421439,136.2,136.16,0.6540117]
[1767627996060,7.34165515,136.21,136.16,0.6540117]
[1767627996265,7.34165515,136.21,136.17,0.6540117]
[1767627996651,7.34106592,136.22,136.18,0.6540117]
[1767627998358,7.34106592,136.22,136.19,0.6540117]
[1767627998763,7.34052704,136.23,136.19,0.6540117]
[1767627999073,7.34021673,136.24,136.2,0.6540117]
[1767627999377,7.33966057,136.25,136.21,0.6540117]
[1767628000175,7.33966057,136.25,136.21,10.19954635]
[1767628000475,7.33966057,136.25,136.21,0.6540117]
[1767628000986,7.33912291,136.26,136.23,0.6540117]
[1767628001358,7.33912291,136.26,136.23,10.19954635]
[1767628001669,7.33912291,136.26,136.23,0.6540117]
[1767628002375,8.04866689,136.27,136.23,0.6540117]
[1767628002874,17.59420154,136.27,136.23,0.6540117]
[1767628003178,9.54553465,136.26,136.23,0.6540117]
[1767628003383,0.38611491,136.26,136.21,10.19954635]
[1767628003561,0.38611491,136.26,136.22,9.54553465]
[1767628003950,35.22983786,136.27,136.22,9.54553465]
[1767628003951,25.68430321,136.27,136.23,0.6540117]
[1767628004155,25.68430321,136.27,136.19,13.38]
[1767628004156,0.71029455,136.26,136.21,10.19954635]
[1767628004362,7.33944954,136.25,136.22,0.6540117]
[1767628005580,7.33944954,136.25,136.21,9.54553465]
[1767628005762,7.33944954,136.25,136.21,10.19954635]
[1767628005957,9.54553465,136.22,136.17,0.6540117]
[1767628006273,20.71944954,136.25,136.1,29.65463842]
[1767628006274,9.94108736,136.19,136.13,0.6540117]
[1767628006476,7.34160487,136.21,136.13,0.6540117]
[1767628006477,9.94410892,136.17,136.13,0.6540117]
[1767628006980,0.71360217,136.19,136.13,0.6540117]
[1767628007179,9.92837502,136.18,136.13,0.6540117]
[1767628007380,9.54553465,136.16,136.13,0.6540117]
[1767628007563,0.38284037,136.18,136.13,0.6540117]
[1767628007564,9.54553465,136.17,136.13,0.6540117]
[1767628007759,9.92837502,136.18,136.13,0.6540117]
[1767628008087,22.92553465,136.19,136.14,0.6540117]
[1767628008266,7.3432222,136.18,136.14,0.6540117]
[1767628008459,22.92553465,136.19,136.14,0.6540117]
[1767628008460,20.72291852,136.19,136.14,0.6540117]
[1767628008671,30.26845317,136.19,136.14,0.6540117]
[1767628008985,20.72291852,136.19,136.15,0.6540117]
[1767628009176,18.35401218,136.21,136.16,0.6540117]
[1767628009177,7.72486318,136.21,136.16,0.6540117]
[1767628009370,17.27039783,136.21,136.16,0.6540117]
[1767628009772,9.54553465,136.2,136.16,0.6540117]
[1767628010261,35.62441001,136.21,136.16,0.6540117]
[1767628010969,9.54553465,136.2,136.16,0.6540117]
[1767628012879,7.34268301,136.19,136.16,0.6540117]
[1767628013572,7.34268301,136.19,136.14,9.54553465]
[1767628013573,17.27433257,136.19,136.14,0.67849093]
[1767628014104,9.54553465,136.17,136.12,0.67849093]
[1767628014282,9.54553465,136.16,136.12,0.67849093]
[1767628014469,9.93800445,136.15,136.11,0.67849093]
[1767628014993,17.28327206,136.15,136.11,0.67849093]
[1767628015773,17.28327206,136.15,136.1,13.38]
[1767628015774,9.54553465,136.14,136.1,14.05849093]
[1767628015985,16.890083,136.16,136.11,0.67849093]
[1767628016572,9.54553465,136.16,136.11,0.67849093]
[1767628016790,0.3833353,136.16,136.11,9.54553465]
[1767628016974,0.3833353,136.16,136.11,16.892353]
[1767628017174,0.3833353,136.16,136.11,17.57100719]
[1767628017374,30.26949037,136.17,136.12,0.67849093]
[1767628019186,16.88949037,136.17,136.12,0.67849093]
[1767628019585,7.34395572,136.17,136.12,0.67849093]
[1767628019767,16.88949037,136.17,136.12,0.67849093]
[1767628020190,9.54553465,136.17,136.13,0.67849093]
[1767628020491,9.93213464,136.17,136.13,0.67849093]
[1767628020683,0.38659999,136.17,136.13,0.67849093]
[1767628020886,9.93213464,136.17,136.13,0.67849093]
[1767628021277,17.596408,136.16,136.11,0.70101119]
[1767628021690,9.54553465,136.13,136.09,0.70101119]
[1767628021899,10.24893946,136.14,136.09,0.70101119]
[1767628022289,10.24583477,136.12,136.07,14.08101119]
[1767628022471,10.24583477,136.12,136.08,0.70101119]
[1767628022792,0.7132996,136.14,136.1,0.70101119]
[1767628023005,9.92867456,136.15,136.1,0.70101119]
[1767628023379,17.27368421,136.15,136.1,0.70101119]
[1767628023701,0.70999801,136.14,136.09,16.89316902]
[1767628024173,0.70999801,136.14,136.09,17.59418021]
[1767628024369,16.8905443,136.15,136.1,0.70101119]
[1767628024569,17.27368421,136.15,136.1,0.70101119]
[1767628025004,7.72814956,136.15,136.1,0.70101119]
[1767628025328,17.27368421,136.15,136.1,8.04850205]
[1767628025673,19.0713361,136.19,136.12,0.70101119]
[1767628025879,7.3433612,136.18,136.14,0.70101119]
[1767628026294,16.88889585,136.18,136.14,0.70101119]
[1767628027582,35.24695136,136.18,136.14,0.70101119]
[1767628027770,16.88889585,136.18,136.14,0.70101119]
[1767628027977,7.3433612,136.18,136.14,0.70101119]
[1767628028285,13.38,136.21,136.17,0.70101119]
[1767628028480,7.3422953,136.2,136.17,0.70101119]
[1767628028700,8.05167201,136.21,136.17,0.70101119]
[1767628029913,7.341674,136.21,136.17,0.70101119]
[1767628030085,7.341674,136.21,136.17,10.24654584]
[1767628030508,7.341674,136.21,136.17,0.70101119]
[1767628033606,7.72420725,136.22,136.18,0.70101119]
[1767628033787,7.72420725,136.22,136.17,9.54553465]
[1767628033788,17.2697419,136.22,136.17,10.24654584]
[1767628034413,17.2697419,136.22,136.17,0.70101119]
[1767628035716,9.54553465,136.21,136.17,0.70101119]
[1767628035898,10.25553266,136.21,136.17,0.70101119]
[1767628036090,10.25553266,136.21,136.15,30.27014077]
[1767628036294,9.93194314,136.2,136.15,14.08101119]
[1767628036502,0.38640849,136.2,136.16,0.70101119]
[1767628037510,9.92867456,136.21,136.16,0.70101119]
[1767628038015,7.72503831,136.21,136.16,10.24654584]
[1767628039885,8.05214635,136.2,136.16,10.24654584]
[1767628040121,0.70999801,136.2,136.17,9.54553465]
[1767628040912,0.70999801,136.2,136.16,10.24654584]
[1767628041112,0.70999801,136.2,136.16,0.70101119]
[1767628041317,0.70999801,136.2,136.17,9.54553465]
[1767628041607,0.70999801,136.2,136.16,8.04515085]
[1767628041608,0.38313991,136.21,136.16,17.5906855]
[1767628041814,0.38313991,136.21,136.16,8.04515085]
[1767628041994,0.70999801,136.2,136.15,30.27016179]
[1767628043021,0.70999801,136.2,136.17,9.54553465]
[1767628043514,0.70999801,136.2,136.16,9.54553465]
[1767628043713,0.70999801,136.2,136.17,9.54553465]
[1767628044513,0.7132996,136.22,136.18,9.54553465]
[1767628044694,0.7132996,136.22,136.17,7.34364655]
[1767628044887,0.38313991,136.21,136.16,8.04528282]
[1767628045110,0.38313991,136.21,136.17,9.54553465]
[1767628045616,0.38313991,136.21,136.15,13.38]
[1767628045815,0.38640849,136.19,136.14,13.38]
[1767628046110,0.70676211,136.18,136.14,22.92553465]
[1767628046703,10.25229676,136.18,136.12,16.89176742]
[1767628046901,0.38961203,136.17,136.12,16.89176742]
[1767628047103,0.38961203,136.17,136.12,7.34623277]
[1767628047310,0.38961203,136.17,136.13,9.54553465]
[1767628048088,0.38961203,136.17,136.12,8.04724396]
[1767628048089,0.38961203,136.17,136.12,17.59277861]
[1767628048295,0.70359061,136.16,136.11,30.97324701]
[1767628048917,0.70359061,136.16,136.12,10.24654584]
[1767628049102,7.34379769,136.17,136.13,0.70101119]
[1767628049303,7.7269376,136.17,136.13,0.70101119]
[1767628049700,0.70999801,136.16,136.11,14.08101119]
[1767628050022,9.93194314,136.15,136.08,0.70101119]
[1767628050220,9.93194314,136.15,136.07,18.37221102]
[1767628050221,9.93194314,136.15,136.1,0.70101119]
[1767628050792,9.54553465,136.14,136.1,0.70101119]
[1767628051013,9.93194314,136.15,136.1,0.70101119]
[1767628051590,0.69663316,136.14,136.1,0.70101119]
[1767628052110,8.04012223,136.12,136.08,0.70902413]
[1767628053526,7.98012224,136.12,136.08,0.70902413]
[1767628053829,7.92012225,136.12,136.08,0.70902413]
[1767628053990,0.69366323,136.12,136.08,0.70902413]
[1767628054322,0.69366323,136.12,136.08,6.58757782]
[1767628054507,7.34614725,136.13,136.09,6.58757782]
[1767628054701,7.34614725,136.13,136.09,0.70902413]
[1767628055020,7.34614725,136.13,136.09,6.58757782]
[1767628055396,31.98913898,136.13,136.09,0.70902413]
[1767628055597,0.69366323,136.12,136.08,0.70902413]
[1767628055801,7.74578694,136.13,136.09,0.70902413]
[1767628056341,0.40257992,136.11,136.07,14.08902413]
[1767628056498,0.40257992,136.11,136.05,7.35005325]
[1767628056499,0.40546164,136.09,136.05,0.70902413]
[1767628056697,2.80020241,136.09,136.05,0.70902413]
[1767628057006,0.69366323,136.09,136.05,0.70902413]
[1767628057503,0.39963969,136.1,136.05,3.1037649]
[1767628057707,0.39963969,136.1,136.05,0.70902413]
[1767628057909,2.79438046,136.1,136.05,0.70902413]
[1767628058626,7.34807847,136.09,136.05,0.70902413]
[1767628058837,10.14215808,136.1,136.05,0.70902413]
[1767628059194,7.74741731,136.1,136.05,0.70902413]
[1767628059398,10.14215808,136.1,136.05,0.70902413]
[1767628059629,28.51100451,136.1,136.05,0.70902413]
[1767628059919,28.51100451,136.1,136.04,15.77474077]
[1767628059920,3.088404,136.09,136.04,13.38]
[1767628060133,0.6907524,136.07,136.03,0.70902413]
[1767628060421,2.39474077,136.09,136.04,0.70902413]
[1767628060624,2.39474077,136.06,136.04,0.70902413]
[1767628060832,2.33474078,136.06,136.04,0.70902413]
[1767628061200,2.39474077,136.07,136.04,0.70902413]
[1767628061427,9.74403386,136.07,136.04,0.70902413]
[1767628062222,2.39474077,136.06,136.04,0.70902413]
[1767628062526,2.39474077,136.07,136.04,0.70902413]
[1767628063104,13.4,136.1,136.05,0.70902413]
[1767628063105,7.34773522,136.1,136.05,0.70902413]
[1767628063328,9.74247599,136.1,136.05,0.70902413]
[1767628063505,7.34773522,136.1,136.05,0.70902413]
[1767628063709,2.39474077,136.09,136.05,0.70902413]
[1767628063919,2.39474077,136.08,136.05,0.70902413]
[1767628064128,2.39474077,136.09,136.05,0.70902413]
[1767628064832,2.39474077,136.06,136.03,0.70902413]
[1767628065023,2.39474077,136.05,136.03,0.70902413]
[1767628065527,2.39474077,136.05,136.02,0.2]
[1767628065528,2.39474077,136.04,136.02,0.2]
[1767628065705,2.39474077,136.03,136.0,13.4]
[1767628065906,2.39474077,136.02,136.0,13.4]
[1767628066113,8.04691539,136.05,136.0,20.75293403]
[1767628066114,2.39474077,136.03,136.0,20.75293403]
[1767628066317,2.39474077,136.03,136.0,13.4]
[1767628066535,5.88640097,136.03,136.0,13.4]
[1767628066707,5.88640097,136.02,136.0,13.4]
[1767628067034,5.16140097,136.02,136.0,13.4]
[1767628067225,7.35028223,136.05,136.0,13.4]
[1767628067226,6.58303413,136.03,136.0,13.4]
[1767628067432,5.88640097,136.03,136.0,13.4]
[1767628067607,5.88640097,136.02,136.0,13.4]
[1767628067813,5.88640097,136.02,135.99,7.55299925]
[1767628067814,5.88640097,136.01,135.99,0.2]
[1767628068143,5.88640097,136.0,135.99,0.2]
[1767628068308,6.58303413,136.02,135.99,0.2]
[1767628069343,13.93498534,136.02,135.99,0.2]
[1767628069525,5.88640097,136.01,135.99,0.2]
[1767628069835,0.69663316,135.99,135.96,0.2]
[1767628070016,39.13160126,136.02,135.96,0.2]
[1767628070017,0.69663316,135.98,135.96,0.2]
[1767628070219,5.88640097,135.97,135.96,0.2]
[1767628070612,0.69663316,136.0,135.96,0.2]
[1767628070808,5.88640097,135.98,135.96,0.2]
[1767628071628,8.05022777,135.99,135.96,0.2]
[1767628071836,13.93615271,136.0,135.96,0.2]
[1767628072336,6.58303413,135.99,135.96,0.2]
[1767628073440,13.90161838,136.01,135.96,0.2]
[1767628073637,6.54878228,136.0,135.96,0.2]
[1767628073940,5.88640097,135.98,135.96,0.2]
[1767628074147,6.54878228,135.98,135.96,0.2]
[1767628074633,6.54878228,135.97,135.94,0.2]
[1767628074815,5.88640097,135.96,135.94,0.2]
[1767628075010,6.54878228,135.95,135.92,26.49190055]
[1767628075233,0.66238131,135.95,135.92,26.49190055]
[1767628075429,6.54878228,135.95,135.92,26.49190055]
[1767628075935,13.90488007,135.95,135.92,26.49190055]
[1767628076322,6.54878228,135.95,135.92,26.49190055]
[1767628076519,0.66238131,135.95,135.92,26.49190055]
[1767628076833,6.54878228,135.96,135.92,26.49190055]
[1767628077340,0.66238131,135.95,135.92,26.49190055]
[1767628077727,8.01819094,135.95,135.92,26.49190055]
[1767628077920,13.90459191,135.95,135.92,26.49190055]
[1767628078642,8.01819094,135.95,135.92,26.49190055]
[1767628079534,5.88640097,135.96,135.92,26.49190055]
[1767628079740,6.54878228,135.96,135.92,26.49190055]
[1767628080128,0.66238131,135.94,135.92,26.49190055]
[1767628080337,6.54878228,135.93,135.89,0.65497558]
[1767628080532,25.74310814,135.96,135.86,23.91551333]
[1767628080533,5.88640097,135.91,135.86,0.65497558]
[1767628080716,0.66238131,135.89,135.84,0.65497558]
[1767628080921,0.62794344,135.89,135.83,27.54027524]
[1767628081139,0.62794344,135.89,135.84,7.36157745]
[1767628081323,13.4,135.91,135.85,7.36074526]
[1767628081641,13.4,135.91,135.84,0.69196697]
[1767628081642,13.24475269,135.9,135.84,13.24778309]
[1767628081840,5.88640097,135.89,135.85,0.69196697]
[1767628082322,5.88640097,135.9,135.85,0.69196697]
[1767628083020,0.72230146,135.96,135.89,0.69196697]
[1767628083215,0.72230146,135.94,135.89,0.69196697]
[1767628083737,8.07853898,135.94,135.9,5.88640097]
[1767628083949,8.07853898,135.94,135.89,13.93717757]
[1767628084147,8.07853898,135.94,135.89,0.69196697]
[1767628084335,0.72230146,135.94,135.89,8.05085824]
[1767628084530,7.35586017,135.95,135.9,6.57836794]
[1767628084735,13.9645626,135.95,135.89,8.05085824]
[1767628085049,26.46727527,135.95,135.89,0.69196697]
[1767628085226,32.35367624,135.95,135.89,6.57836794]
[1767628085743,0.72230146,135.93,135.88,5.88640097]
[1767628085943,0.72230146,135.93,135.88,6.57836794]
[1767628086155,0.72230146,135.93,135.88,13.93770743]
[1767628086318,25.74497381,135.95,135.91,5.88640097]
[1767628086319,8.07816163,135.95,135.91,5.88640097]
[1767628086519,8.07816163,135.95,135.86,13.4]
[1767628086520,0.72230146,135.92,135.87,0.69196697]
[1767628086718,0.72230146,135.92,135.87,13.93804573]
[1767628086946,0.72230146,135.92,135.87,8.05164476]
[1767628087118,5.88640097,135.91,135.87,0.69196697]
[1767628087322,6.60870243,135.92,135.87,0.69196697]
[1767628087740,13.96622187,135.92,135.87,0.69196697]
[1767628087946,6.60870243,135.91,135.87,0.69196697]
[1767628088139,6.60870243,135.91,135.86,26.64649553]
[1767628088347,0.72230146,135.89,135.85,0.69196697]
[1767628088546,6.60870243,135.89,135.83,8.25400803]
[1767628088746,0.72230146,135.87,135.83,0.2]
[1767628088926,6.60870243,135.87,135.83,0.2]
[1767628089134,0.72230146,135.85,135.83,0.2]
[1767628089822,13.4,135.89,135.83,0.2]
[1767628089823,0.72230146,135.87,135.83,0.2]
[1767628090021,8.0813073,135.89,135.83,14.14033755]
[1767628090248,0.72230146,135.89,135.83,8.25393658]
[1767628090434,0.72230146,135.89,135.84,5.88640097]
[1767628090642,0.72230146,135.88,135.83,0.2]
[1767628090837,8.35013837,135.94,135.84,0.69196697]
[1767628090838,0.72230146,135.9,135.84,0.69196697]
[1767628091039,0.72230146,135.92,135.87,5.88640097]
[1767628091238,13.24312869,135.93,135.86,0.69196697]
[1767628091239,0.72230146,135.91,135.86,0.69196697]
[1767628091459,0.72230146,135.9,135.85,5.88640097]
[1767628091752,0.72230146,135.9,135.84,13.4]
[1767628091753,8.08185155,135.88,135.84,13.4]
[1767628092048,13.96825252,135.88,135.83,6.77836794]
[1767628092227,32.3668395,135.88,135.83,0.2]
[1767628092427,8.08185155,135.88,135.83,6.08640097]
[1767628092624,8.08185155,135.88,135.83,13.44841445]
[1767628093024,0.72230146,135.9,135.85,0.69196697]
[1767628093224,13.96705445,135.9,135.85,0.69196697]
[1767628093432,13.96705445,135.9,135.85,6.57836794]
[1767628093643,8.08065348,135.9,135.85,6.57836794]
[1767628093846,8.08065348,135.9,135.86,5.88640097]
[1767628094028,8.08065348,135.9,135.85,0.69196697]
[1767628094029,13.96705445,135.9,135.85,0.69196697]
[1767628094430,0.72230146,135.88,135.83,6.77836794]
[1767628095048,0.72230146,135.87,135.83,6.08640097]
[1767628095247,0.72230146,135.86,135.83,0.2]
[1767628095449,6.60870243,135.86,135.83,0.2]
[1767628095652,13.42,135.88,135.81,1e-08]
[1767628095653,0.72230146,135.83,135.81,1e-08]
[1767628095831,6.60870243,135.82,135.81,1e-08]
[1767628096227,0.72230146,135.82,135.81,1e-08]
[1767628096451,13.97138833,135.82,135.81,1e-08]
[1767628096829,0.72230146,135.81,135.74,8.05895334]
[1767628097127,5.88640097,135.79,135.74,0.69196697]
[1767628097343,0.72230146,135.8,135.74,6.57836794]
[1767628097547,20.78223605,135.83,135.78,5.88640097]
[1767628097734,7.36223605,135.83,135.77,0.69196697]
[1767628097934,5.88640097,135.81,135.76,0.69196697]
[1767628098142,5.88640097,135.81,135.76,6.57836794]
[1767628098347,0.72230146,135.82,135.77,6.57836794]
[1767628098550,7.36322803,135.81,135.77,0.69196697]
[1767628098933,8.08511984,135.82,135.77,6.57836794]
[1767628099140,13.24860641,135.83,135.77,8.05735335]
[1767628099350,19.12489723,135.86,135.79,0.69196697]
[1767628099657,8.08319134,135.86,135.8,6.57836794]
[1767628099846,6.27506945,135.85,135.79,0.69196697]
[1767628100049,6.27506945,135.85,135.79,6.57836794]
[1767628100543,13.24800285,135.84,135.8,0.69196697]
[1767628100860,5.88640097,135.82,135.78,0.69196697]
[1767628101033,0.39197145,135.83,135.78,0.69196697]
[1767628101234,5.88640097,135.82,135.78,0.69196697]
[1767628101431,6.27837242,135.83,135.78,0.69196697]
[1767628101651,5.88640097,135.81,135.76,6.57836794]
[1767628102152,6.60209616,135.82,135.76,6.57836794]
[1767628102342,0.71569519,135.82,135.76,8.05781411]
[1767628102658,0.71569519,135.82,135.77,13.25171086]
[1767628102957,13.96484839,135.82,135.77,6.57836794]
[1767628103658,13.96484839,135.82,135.77,0.69196697]
[1767628103961,5.88640097,135.81,135.75,19.99836794]
[1767628104348,0.71249032,135.8,135.75,19.99836794]
[1767628104653,5.88640097,135.81,135.76,0.69196697]
[1767628104858,0.38866848,135.82,135.77,6.57836794]
[1767628105161,6.6053661,135.82,135.77,0.69196697]
[1767628105743,6.6053661,135.82,135.77,5.88640097]
[1767628106047,5.88640097,135.82,135.77,0.69196697]
[1767628106248,8.08478297,135.83,135.77,0.69196697]
[1767628106555,13.97118394,135.83,135.77,6.57836794]
[1767628106744,13.97118394,135.83,135.77,13.9436316]
[1767628106745,0.38866848,135.82,135.77,13.9436316]
[1767628107056,0.38866848,135.82,135.75,18.41605437]
[1767628107057,0.71896513,135.81,135.76,13.2521849]
[1767628107257,0.71896513,135.81,135.77,7.36536449]
[1767628107453,0.71896513,135.81,135.77,7.36522669]
[1767628107829,0.71896513,135.81,135.76,13.25227123]
[1767628108050,6.27506945,135.82,135.77,0.69196697]
[1767628108452,6.27506945,135.82,135.77,8.05722164]
[1767628108655,18.4047636,135.84,135.75,0.69196697]
[1767628108656,5.88640097,135.78,135.75,0.69196697]
[1767628109458,5.88640097,135.79,135.75,0.69196697]
[1767628109658,39.19129812,135.81,135.77,6.57836794]
[1767628109659,7.36322803,135.81,135.77,6.57836794]
[1767628109848,7.36322803,135.81,135.74,25.78442404]
[1767628109849,13.249629,135.81,135.75,0.69196697]
[1767628110163,13.249629,135.81,135.76,0.69196697]
[1767628110740,7.4641179,135.81,135.76,0.69196697]
[1767628110965,0.10274214,135.79,135.74,0.6790454]
[1767628111170,5.88640097,135.78,135.74,0.6790454]
[1767628111371,5.88640097,135.75,135.73,1e-08]
[1767628111961,5.88640097,135.76,135.73,0.67904541]
[1767628112165,5.88640097,135.78,135.74,0.6790454]
[1767628112473,5.88640097,135.79,135.74,0.6790454]